fUST/lending_fUST_20251025
["ID","MTS","AMOUNT","RATE_DAILY","PERIOD"]
[392355376,1761398073229,500.0,0.00018297,2]
[392355377,1761398073262,500.0,0.00018297,2]
[392355378,1761398073299,500.0,0.00018297,2]
[392355379,1761398073330,500.0,0.00018297,2]
[392355380,1761398073362,500.0,0.00018297,2]
[392355381,1761398073395,500.0,0.00018297,2]
[392355382,1761398073432,500.0,0.00018297,2]
[392355383,1761398073463,500.0,0.00018297,2]
[392355384,1761398073500,500.0,0.00018297,2]
[392355385,1761398073531,500.0,0.00018297,2]
[392355386,1761398073567,330.60518541,0.00018297,2]
[392355387,1761398073599,500.0,0.00018297,2]
[392355388,1761398073631,570.73488062,0.00018297,2]
[392355389,1761398073667,500.0,0.00018297,2]
[392355390,1761398073697,500.0,0.00018297,2]
[392355391,1761398073729,500.0,0.00018297,2]
[392355392,1761398073760,500.0,0.00018297,2]
[392355393,1761398073792,500.0,0.00018297,2]
[392355394,1761398073853,500.0,0.00018297,2]
[392355395,1761398073884,500.0,0.00018297,2]
[392355396,1761398073917,500.0,0.00018297,2]
[392355397,1761398073953,500.0,0.00018297,2]
[392355398,1761398073989,500.0,0.00018297,2]
[392355399,1761398074019,500.0,0.00018297,2]
[392355400,1761398074049,500.0,0.00018297,2]
[392355401,1761398074079,500.0,0.00018297,2]
[392355402,1761398074127,500.0,0.00018297,2]
[392355403,1761398074156,500.0,0.00018297,2]
[392355404,1761398074190,602.74585119,0.00018297,2]
[392355405,1761398074221,500.0,0.00018297,2]
[392355406,1761398074261,500.0,0.00018297,2]
[392355407,1761398074291,500.0,0.00018297,2]
[392355408,1761398074324,500.0,0.00018297,2]
[392355409,1761398074355,500.0,0.00018297,2]
[392355410,1761398074389,500.0,0.00018297,2]
[392355411,1761398074429,500.0,0.00018297,2]
[392355412,1761398074460,500.0,0.00018297,2]
[392355413,1761398074496,500.0,0.00018297,2]
[392355414,1761398074527,500.0,0.00018297,2]
[392355415,1761398074835,500.0,0.00018297,2]
[392355416,1761398075137,500.0,0.00018297,2]
[392355417,1761398075172,500.0,0.00018297,2]
[392355418,1761398076650,415.5806241,0.000182,2]
[392355419,1761398078881,570.56,0.00018297,2]
[392355420,1761398079585,500.0,0.00018296,2]
[392355421,1761398082183,1997.65,0.00018296,2]
[392355422,1761398083068,1323.85,0.00018296,2]
[392355423,1761398084717,575.18,0.00018296,2]
[392355424,1761398085562,1220.09,0.00018297,2]
[392355425,1761398086245,1152.37,0.00018297,2]
[392355426,1761398087613,499.99999999,0.00018297,2]
[392355427,1761398089375,1631.32,0.00018296,2]
[392355428,1761398093487,500.0,0.00018296,2]
[392355429,1761398093529,1087.18,0.00018297,2]
[392355430,1761398094868,500.0,0.00018296,2]
[392355431,1761398097934,500.0,0.00018296,2]
[392355432,1761398099829,500.0,0.00018297,2]
[392355433,1761398100924,500.0,0.00018297,2]
[392355434,1761398101275,500.0,0.00018296,2]
[392355435,1761398104022,2183.93,0.00018297,2]
[392355436,1761398104668,500.0,0.00018296,2]
[392355437,1761398109789,500.0,0.00018296,2]
[392355438,1761398111848,500.0,0.00018297,2]
[392355439,1761398111909,656.61,0.00018297,2]
[392355440,1761398114535,500.0,0.00018296,2]
[392355441,1761398115501,984.32,0.00018296,2]
[392355442,1761398119318,500.0,0.00018297,2]
[392355443,1761398119685,833.01,0.00018297,2]
[392355444,1761398121591,500.0,0.00018296,2]
[392355445,1761398123358,2464.97,0.00018296,2]
[392355446,1761398125114,500.0,0.00018297,2]
[392355447,1761398125549,500.0,0.00018297,2]
[392355448,1761398129529,554.44594556,0.00018297,2]
[392355449,1761398131705,500.0,0.00018297,2]
[392355450,1761398131881,513.68,0.00018297,2]
[392355451,1761398132972,3370.43,0.00018297,2]
[392355452,1761398133093,967.5,0.00018296,2]
[392355453,1761398133431,1445.64,0.00018297,2]
[392355454,1761398133917,500.0,0.00018297,2]
[392355455,1761398137595,2070.66,0.00018296,2]
[392355456,1761398141157,1099.65,0.00018297,2]
[392355457,1761398141390,500.0,0.00018297,2]
[392355458,1761398143259,504.99690797,0.00018297,2]
[392355459,1761398144142,500.0,0.00018297,2]
[392355460,1761398144191,500.0,0.00018297,2]
[392355461,1761398145132,500.0,0.00018297,2]
[392355462,1761398146705,500.0,0.00018297,2]
[392355463,1761398150866,500.0,0.00018297,2]
[392355464,1761398151051,198.58932981,0.00016,2]
[392355465,1761398151269,500.0,0.00018297,2]
[392355466,1761398152744,500.0,0.00018297,2]
[392355467,1761398153467,500.0,0.00018296,2]
[392355468,1761398154560,500.0,0.00018297,2]
[392355469,1761398154588,1197.91,0.00018297,2]
[392355470,1761398156130,500.0,0.00018297,2]
[392355471,1761398160214,500.0,0.00018297,2]
[392355472,1761398160290,500.0,0.00018297,2]
[392355473,1761398162014,1509.13,0.00018297,2]
[392355474,1761398162853,747.32,0.00018296,2]
[392355475,1761398163452,786.1,0.00018296,2]
[392355476,1761398168445,1440.95834715,0.00018297,2]
[392355477,1761398169751,500.0,0.00018297,2]
[392355478,1761398170762,500.0,0.00018297,2]
[392355479,1761398170980,500.0,0.00018297,2]
[392355480,1761398172824,500.0,0.00018296,2]
[392355481,1761398176291,500.0,0.00018297,2]
[392355482,1761398177107,600.61,0.00018297,2]
[392355483,1761398177245,500.0,0.00018297,2]
[392355484,1761398177436,500.0,0.00018297,2]
[392355485,1761398178289,1670.12,0.00018296,2]
[392355486,1761398180504,500.0,0.00018297,2]
[392355487,1761398181218,500.0,0.00018297,2]
[392355488,1761398181332,512.24356151,0.00018297,2]
[392355489,1761398183013,500.0,0.00018297,2]
[392355490,1761398185504,500.0,0.00018296,2]
[392355491,1761398186349,500.0,0.00018297,2]
[392355492,1761398186785,614.83,0.00018297,2]
[392355493,1761398187325,502.68535518,0.00018297,2]
[392355494,1761398189713,1046.12,0.00018296,2]
[392355495,1761398196136,500.0,0.00018297,2]
[392355496,1761398197164,500.0,0.00018297,2]
[392355497,1761398197338,925.36,0.00018297,2]
[392355498,1761398198278,264.33281615,0.00018297,2]
[392355499,1761398201552,500.0,0.00018297,2]
[392355500,1761398204610,534.07,0.00018297,2]
[392355501,1761398207006,823.13,0.00018296,2]
[392355502,1761398208174,764.09,0.00018297,2]
[392355503,1761398209134,500.0,0.00018296,2]
[392355504,1761398212272,988.35,0.00018297,2]
[392355505,1761398213238,500.0,0.00018297,2]
[392355506,1761398213722,500.0,0.00018297,2]
[392355507,1761398218316,2125.06,0.00018297,2]
[392355508,1761398219176,1937.77,0.00018297,2]
[392355509,1761398219977,500.0,0.00018296,2]
[392355510,1761398220344,494.15082719,0.00018297,2]
[392355511,1761398222084,500.0,0.00018297,2]
[392355512,1761398222755,500.0,0.00018297,2]
[392355513,1761398224325,300.0,0.00018297,2]
[392355515,1761398226767,500.0,0.00018297,2]
[392355516,1761398227342,-300.0,0.00018298,2]
[392355517,1761398227379,-1200.0,0.00018298,2]
[392355518,1761398227409,-500.0,0.00018298,2]
[392355519,1761398227444,-481.17835393,0.00018298,2]
[392355520,1761398227478,-563.41498674,0.00018298,2]
[392355521,1761398227510,-500.0,0.00018298,2]
[392355522,1761398227541,-500.0,0.00018298,2]
[392355523,1761398227574,-344.74953902,0.00018298,2]
[392355524,1761398227605,-333.67424062,0.00018298,2]
[392355525,1761398227809,-553.97575938,0.00018298,2]
[392355526,1761398229232,507.20756927,0.00018297,2]
[392355527,1761398230848,500.0,0.00018297,2]
[392355528,1761398231054,357.21678123,0.000182,2]
[392355529,1761398231262,500.0,0.00018297,2]
[392355530,1761398232121,1640.85,0.00018296,2]
[392355531,1761398233003,-1295.29,0.00018298,2]
[392355532,1761398233039,-337.48245199,0.00018298,2]
[392355533,1761398233071,-500.0,0.00018299,2]
[392355534,1761398233104,-2476.79,0.00018299,2]
[392355535,1761398233135,-280.88509602,0.00018299,2]
[392355536,1761398233186,357.2167812,0.00018209,2]
[392355537,1761398233271,-219.11490398,0.00018299,2]
[392355538,1761398235038,357.2167812,0.00018219,2]
[392355539,1761398236473,500.0,0.00018297,2]
[392355540,1761398237084,357.2167812,0.00018228,2]
[392355541,1761398238994,-627.3,0.00018298,2]
[392355542,1761398239025,-500.0,0.00018299,2]
[392355543,1761398239053,-749.38,0.00018299,2]
[392355544,1761398239083,-315.99283337,0.00018299,2]
[392355545,1761398239116,-980.11,0.00018299,2]
[392355546,1761398239147,-821.16,0.00018299,2]
[392355547,1761398239176,-500.0,0.00018299,2]
[392355548,1761398239233,357.2167812,0.00018237,2]
[392355549,1761398239347,-1012.12433326,0.00018299,2]
[392355550,1761398239376,460.81695069,0.00018297,2]
[392355551,1761398239408,1196.94,0.00018297,2]
[392355552,1761398239888,308530.02483025,0.00018199,2]
[392355553,1761398243567,3197.60387428,0.00018017,2]
[392355554,1761398248940,266.0336965,0.00017326,2]
[392355555,1761398252182,5000.0,0.00018199,2]
[392355556,1761398258120,1200.0,0.00018198,2]
[392355557,1761398267570,336.37242922,0.00018199,2]
[392355558,1761398267591,327.1175279,0.00018199,2]
[392355559,1761398275999,4352.09693118,0.00018199,2]
[392355560,1761398284189,300.0,0.00018198,2]
[392355562,1761398305508,-157.44634348,0.00018196,2]
[392355563,1761398338691,-5020.79554092,0.00018199,2]
[392355564,1761398338825,-10000.01,0.00018199,2]
[392355565,1761398338934,-10000.01,0.00018199,2]
[392355566,1761398339110,-10000.01,0.00018199,2]
[392355567,1761398339246,-10000.01,0.00018199,2]
[392355568,1761398339371,-10000.01,0.00018199,2]
[392355569,1761398339548,-3550.88037117,0.00018199,2]
[392355570,1761398339577,-2898.24925766,0.00018199,2]
[392355571,1761398341324,-277.0537494,0.000182,2]
[392355572,1761398377660,10000.01,0.00017299,2]
[392355573,1761398377683,10000.01,0.00017299,2]
[392355574,1761398377706,9582.668097,0.00017299,2]
[392355575,1761398394731,417.341903,0.00018,2]
[392355576,1761398394757,92.08569524,0.00018,2]
[392355577,1761398410161,190.3970847,0.00018,2]
[392355578,1761398490594,1413.9909215,0.00017199,2]
[392355579,1761398510818,260.72270117,0.00016,2]
[392355581,1761398693610,-163.21674625,0.00018064,2]
[392355582,1761398713343,1542.530945,0.0001719,2]
[392355583,1761398779542,180000.0,0.000301,120]
[392355584,1761398780919,-394.44035554,0.00018088,2]
[392355585,1761398813028,367.0,0.00017974,2]
[392355586,1761398819028,367.0,0.00017999,2]
[392355587,1761398832112,-330.73280295,0.00018126,2]
[392355588,1761398832142,-300.64585519,0.00018164,2]
[392355589,1761398832171,-300.64585515,0.00018172,2]
[392355590,1761398832200,-300.64585515,0.0001818,2]
[392355591,1761398832228,-300.0,0.00018184,2]
[392355592,1761398832867,-2700.94191551,0.00018185,2]
[392355593,1761398832908,-1202.53494919,0.00018185,2]
[392355594,1761398832935,-7594.94010162,0.00018185,2]
[392355595,1761398833055,-307.14950004,0.00018185,2]
[392355596,1761398833084,-190.98113683,0.00018185,2]
[392355597,1761398833116,-500.0,0.00018185,2]
[392355598,1761398833150,-500.0,0.00018185,2]
[392355599,1761398833184,-500.0,0.00018185,2]
[392355600,1761398833218,-385.94738001,0.00018185,2]
[392355601,1761398833248,-300.0,0.00018185,2]
[392355602,1761398833279,-454.31046067,0.00018185,2]
[392355603,1761398833314,-500.0,0.00018185,2]
[392355604,1761398833345,-500.0,0.00018185,2]
[392355605,1761398833376,-500.0,0.00018185,2]
[392355606,1761398833410,-223.23304491,0.00018185,2]
[392355607,1761398833559,-276.76695508,0.00018185,2]
[392355608,1761398833588,-500.0,0.00018185,2]
[392355609,1761398833883,-301.86936312,0.00018186,2]
[392355610,1761398833904,-8446.47608984,0.00018186,2]
[392355611,1761398833943,-10000.01,0.00018186,2]
[392355612,1761398833963,-10000.01,0.00018186,2]
[392355613,1761398835007,-10000.01,0.00018186,2]
[392355614,1761398835133,-10000.01,0.00018186,2]
[392355615,1761398835264,-10000.01,0.00018186,2]
[392355616,1761398835446,-367.0,0.00017901,2]
[392355617,1761398835488,-9266.01,0.00018186,2]
[392355618,1761398835571,-10000.01,0.00018186,2]
[392355619,1761398841017,-367.0,0.00017829,2]
[392355620,1761398841047,-502.50527046,0.00018185,2]
[392355621,1761398841076,-501.80462602,0.00018185,2]
[392355622,1761398841155,-7257.39020704,0.00018186,2]
[392355623,1761398841750,-10000.01,0.00018186,2]
[392355624,1761398841771,-10000.01,0.00018186,2]
[392355625,1761398841794,-10000.01,0.00018186,2]
[392355626,1761398841837,-10000.01,0.00018186,2]
[392355627,1761398844071,-4730.01,0.00018,2]
[392355628,1761398844097,-539.99,0.00018,2]
[392355630,1761398847050,-367.0,0.00018116,2]
[392355631,1761398847081,-501.77766808,0.00018185,2]
[392355632,1761398847111,-500.0,0.00018185,2]
[392355633,1761398847180,-7262.45466384,0.00018186,2]
[392355634,1761398847214,-10000.01,0.00018186,2]
[392355635,1761398847417,-10000.01,0.00018186,2]
[392355636,1761398847540,-10000.01,0.00018186,2]
[392355637,1761398847705,6500.0,0.000201,10]
[392355638,1761398850231,-500.0,0.00018185,2]
[392355639,1761398850275,-9000.01,0.00018186,2]
[392355640,1761398853095,-10000.01,0.00018186,2]
[392355641,1761398853211,-10000.01,0.00018186,2]
[392355642,1761398853321,-10000.01,0.00018186,2]
[392355643,1761398853486,-277.0537494,0.00018096,2]
[392355644,1761398853528,-9445.9025012,0.00018186,2]
[392355645,1761398854119,803.0,0.0003013,120]
[392355646,1761398856108,-10000.01,0.00018186,2]
[392355647,1761398859304,-4170.0,0.00017852,2]
[392355648,1761398859338,-500.0,0.00018185,2]
[392355649,1761398859398,-660.01,0.00018185,2]
[392355650,1761398859603,-539.99,0.00018185,2]
[392355651,1761398859649,-8920.03,0.00018186,2]
[392355652,1761398859747,-10000.01,0.00018186,2]
[392355653,1761398859976,-10000.01,0.00018186,2]
[392355655,1761398862303,-10000.01,0.00018186,2]
[392355656,1761398862331,-10000.01,0.00018186,2]
[392355657,1761398865306,-10000.01,0.00018186,2]
[392355658,1761398865553,-10000.01,0.00018186,2]
[392355659,1761398865686,-10000.01,0.00018186,2]
[392355660,1761398865844,-10000.01,0.00018186,2]
[392355661,1761398865992,-10000.01,0.00018186,2]
[392355662,1761398866115,-10000.01,0.00018186,2]
[392355663,1761398866275,-10000.01,0.00018186,2]
[392355664,1761398868129,-4170.0,0.00017937,2]
[392355665,1761398868169,-1660.01,0.00018,2]
[392355667,1761398871155,-1632.59893498,0.00018,2]
[392355668,1761398871180,-6734.81213004,0.00018,2]
[392355669,1761398871311,-10000.01,0.00018,2]
[392355670,1761398871437,-10000.01,0.00018,2]
[392355671,1761398871549,-10000.01,0.00018,2]
[392355672,1761398871675,-4433.42519833,0.00018,2]
[392355673,1761398871700,-1133.15960334,0.00018,2]
[392355674,1761398871801,-500.0,0.00018185,2]
[392355675,1761398871830,-448.11932149,0.00018185,2]
[392355676,1761398871889,-8103.77135702,0.00018186,2]
[392355677,1761398871938,-10000.01,0.00018186,2]
[392355678,1761398872077,-10000.01,0.00018186,2]
[392355681,1761398874437,-4170.0,0.000179,2]
[392355682,1761398875947,1000.0,0.0003013,120]
[392355683,1761398896344,1389.99479004,0.00018,2]
[392355684,1761398900151,270.01520996,0.000176,2]
[392355685,1761398900175,1846.14794774,0.000176,2]
[392355688,1761398904357,286.81947439,0.0001,2]
[392355689,1761398909144,7867.04257787,0.00017,2]
[392355690,1761398909167,10000.01,0.00017,2]
[392355691,1761398909189,2152.13857642,0.00017,2]
[392355692,1761398910619,626.0,0.00017758,2]
[392355693,1761398911559,1884.78081506,0.00015,2]
[392355694,1761398917287,163.07995858,0.00017998,2]
[392355696,1761398980727,5174.01064994,0.0001799,2]
[392355697,1761398980752,10000.01,0.0001799,2]
[392355698,1761398980776,10000.01,0.0001799,2]
[392355699,1761398980800,10000.01,0.0001799,2]
[392355700,1761398980825,10000.01,0.0001799,2]
[392355701,1761398980848,10000.01,0.0001799,2]
[392355702,1761398980873,10000.01,0.0001799,2]
[392355703,1761398980895,10000.01,0.0001799,2]
[392355704,1761398980920,3666.77962607,0.0001799,2]
[392355705,1761398990126,196.0,0.00016,2]
[392355706,1761398990425,196.0,0.00016525,2]
[392355707,1761398990716,196.0,0.0001705,2]
[392355708,1761398991005,196.0,0.00017575,2]
[392355709,1761398997687,-161.0,0.00018,2]
[392355710,1761398997715,-300.0,0.00018,2]
[392355711,1761398997742,-300.0,0.00018,2]
[392355712,1761398997771,-199.01,0.00018,2]
[392355713,1761398997942,-1920.02,0.00018,2]
[392355714,1761398998095,-3840.04,0.00018,2]
[392355715,1761398998235,-2319.93,0.00018,2]
[392355716,1761398998263,-300.0,0.00018,2]
[392355717,1761398998292,-626.0,0.00018029,2]
[392355718,1761398998320,-323.95139809,0.00018098,2]
[392355719,1761398998348,-323.95139808,0.000181,2]
[392355720,1761398998381,-299.582056,0.000181,2]
[392355721,1761398998409,-323.95139808,0.00018102,2]
[392355722,1761398998438,-323.95139808,0.00018104,2]
[392355723,1761398998559,-323.95139808,0.00018106,2]
[392355724,1761399003570,-300.0,0.00018105,2]
[392355725,1761399004084,-9518.57228111,0.00018106,2]
[392355726,1761399004239,-10000.01,0.00018106,2]
[392355727,1761399004421,-10000.01,0.00018106,2]
[392355728,1761399004537,-1017.01924743,0.00018106,2]
[392355729,1761399004564,-7965.97150514,0.00018106,2]
[392355730,1761399004727,-500.0,0.00018185,2]
[392355731,1761399004757,-425.33793222,0.00018185,2]
[392355732,1761399004791,-500.0,0.00018185,2]
[392355733,1761399004824,-500.0,0.00018185,2]
[392355734,1761399005024,-500.0,0.00018185,2]
[392355735,1761399005057,-500.0,0.00018185,2]
[392355736,1761399005091,-500.0,0.00018185,2]
[392355737,1761399005121,-476.94405189,0.00018185,2]
[392355738,1761399005155,-436.44707855,0.00018185,2]
[392355739,1761399005188,-500.0,0.00018185,2]
[392355740,1761399005315,-500.0,0.00018185,2]
[392355741,1761399005348,-330.12449437,0.00018185,2]
[392355742,1761399005383,-500.0,0.00018185,2]
[392355743,1761399005418,-320.84592079,0.00018185,2]
[392355744,1761399005452,-500.0,0.00018185,2]
[392355745,1761399005487,-500.0,0.00018185,2]
[392355746,1761399005519,-850.66,0.00018185,2]
[392355747,1761399005551,-500.0,0.00018185,2]
[392355748,1761399005585,-500.0,0.00018185,2]
[392355749,1761399006190,-352.36595389,0.00018185,2]
[392355750,1761399006214,-888.95404611,0.00018185,2]
[392355751,1761399006223,-107.79512357,0.00018185,2]
[392355752,1761399006733,-1200.0,0.00018105,2]
[392355753,1761399006770,-1331.19487643,0.00018185,2]
[392355754,1761399006800,-775.41,0.00018185,2]
[392355755,1761399006830,-500.0,0.00018185,2]
[392355756,1761399006860,-816.92,0.00018185,2]
[392355757,1761399006892,-246.26616377,0.00018185,2]
[392355758,1761399007016,-260.4279196,0.00018185,2]
[392355759,1761399007048,-500.0,0.00018185,2]
[392355760,1761399007078,-1218.32,0.00018185,2]
[392355761,1761399007110,-500.0,0.00018185,2]
[392355762,1761399007141,-500.0,0.00018185,2]
[392355763,1761399007686,-281.68,0.00018186,2]
[392355764,1761399007716,-4042.5141608,0.00018186,2]
[392355765,1761399007831,-10000.01,0.00018186,2]
[392355766,1761399007900,-10000.01,0.00018186,2]
[392355767,1761399007926,-10000.01,0.00018186,2]
[392355768,1761399012615,-500.0,0.00018185,2]
[392355769,1761399012647,-887.17,0.00018185,2]
[392355770,1761399012677,-2845.17225005,0.00018186,2]
[392355771,1761399012708,-171.53,0.0001819,3]
[392355772,1761399012738,-514.64,0.0001819,3]
[392355773,1761399012882,-215.00465003,0.00018195,2]
[392355774,1761399012913,-583.26,0.00018196,2]
[392355775,1761399012944,-1793.86,0.00018196,2]
[392355776,1761399012976,-1823.04069994,0.00018196,2]
[392355777,1761399013158,-1169.67930006,0.00018196,2]
[392355778,1761399013189,-1268.69,0.00018196,2]
[392355779,1761399013223,-552.66639266,0.00018196,2]
[392355780,1761399013254,-943.3,0.00018196,2]
[392355781,1761399013377,-2362.26,0.00018196,2]
[392355782,1761399013413,-927.19,0.00018196,2]
[392355783,1761399013447,-500.0,0.00018196,2]
[392355784,1761399013480,-753.34,0.00018196,2]
[392355785,1761399013512,-414.43,0.00018196,2]
[392355786,1761399013718,-300.0,0.00018,2]
[392355787,1761399013728,-85.57,0.00018196,2]
[392355788,1761399013737,-512.65411446,0.00018196,2]
[392355789,1761399013755,-927.19,0.00018196,2]
[392355790,1761399013771,-160.68588554,0.00018196,2]
[392355791,1761399013780,-339.31411446,0.00018196,2]
[392355792,1761399013802,-160.68588554,0.00018196,2]
[392355793,1761399013811,-592.65411446,0.00018196,2]
[392355794,1761399013833,-409.87588554,0.00018196,2]
[392355795,1761399013842,-90.12411446,0.00018196,2]
[392355796,1761399015638,-698.70588554,0.00018196,2]
[392355797,1761399015671,-1095.45,0.00018196,2]
[392355798,1761399015704,-1572.48,0.00018196,2]
[392355799,1761399015735,-893.14822892,0.00018196,2]
[392355800,1761399015814,-1480.44177108,0.00018196,2]
[392355801,1761399015851,-500.0,0.00018196,2]
[392355802,1761399015881,-851.67,0.00018197,2]
[392355803,1761399015912,-1914.41,0.00018197,2]
[392355804,1761399015944,-1563.35,0.00018197,2]
[392355805,1761399016048,-341.15,0.00018197,2]
[392355806,1761399024779,-489.23987565,0.00017916,2]
[392355825,1761399031625,665.4553937,0.00017916,2]
[392355826,1761399031823,-205.68315899,0.00017928,2]
[392355827,1761399031832,-300.0,0.00018,2]
[392355828,1761399031842,-489.23987565,0.00018097,2]
[392355829,1761399031851,-500.0,0.00018185,2]
[392355830,1761399031861,-558.96,0.00018185,2]
[392355831,1761399031871,-71.52503006,0.00018185,2]
[392355852,1761399039865,-300.0,0.00018,2]
[392355856,1761399039896,-428.47496994,0.00018185,2]
[392355860,1761399039927,-937.85,0.00018185,2]
[392355865,1761399039958,-500.0,0.00018185,2]
[392355869,1761399039988,-1719.11,0.00018185,2]
[392355885,1761399040122,-500.0,0.00018185,2]
[392355890,1761399040159,173.75805576,0.00017916,2]
[392355898,1761399040223,-1389.92661066,0.00018185,2]
[392355912,1761399040345,-1272.92338934,0.00018185,2]
[392355916,1761399040376,-1385.4,0.00018185,2]
[392355920,1761399040413,-500.0,0.00018185,2]
[392355925,1761399040445,-213.96859442,0.00018189,2]
[392355929,1761399040474,-233.08885285,0.00018189,2]
[392355933,1761399040506,-939.28,0.00018196,2]
[392355937,1761399040536,-158.85,0.00018197,2]
[392355942,1761399040568,-217.12692305,0.00018197,2]
[392355948,1761399040613,-158.73448068,0.00018197,2]
[392355952,1761399040644,-500.0,0.00018197,2]
[392355957,1761399040677,-500.0,0.00018197,2]
[392355961,1761399040708,-509.33058646,0.00018197,2]
[392355962,1761399040740,-1984.38,0.00018197,2]
[392355963,1761399040772,-716.18,0.00018197,2]
[392355964,1761399040803,-500.0,0.00018197,2]
[392356017,1761399041421,-168.06506714,0.00018185,2]
[392356020,1761399041438,-262.75986572,0.00018185,2]
[392356163,1761399042760,-69.17506714,0.00018185,2]
[392356167,1761399042792,-1834.64,0.00018185,2]
[392356172,1761399042823,-718.16,0.00018197,2]
[392356176,1761399042854,-500.0,0.00018197,2]
[392356181,1761399042888,-480.26605096,0.00018197,2]
[392356185,1761399042918,-547.4,0.00018198,2]
[392356190,1761399042950,-651.6077638,0.00018198,2]
[392356203,1761399043059,-397.5122362,0.00018198,2]
[392356207,1761399043090,-500.0,0.00018198,2]
[392356212,1761399043121,-1817.5,0.00018198,2]
[392356216,1761399043152,-509.55,0.00018198,2]
[392356220,1761399043182,-500.0,0.00018198,2]
[392356225,1761399043212,-500.0,0.00018198,2]
[392356229,1761399043242,-500.0,0.00018198,2]
[392356269,1761399043698,-397.5122362,0.00018198,2]
[392356272,1761399043720,-550.8855276,0.00018198,2]
[392356474,1761399045932,-500.0,0.00018185,2]
[392356476,1761399045941,-138.8540017,0.00018196,2]
[392356755,1761399048986,-300.0,0.00018,2]
[392356759,1761399049017,-361.1459983,0.00018014,2]
[392356763,1761399049048,-361.1459983,0.00018196,2]
[392356767,1761399049079,-759.7122362,0.00018198,2]
[392356771,1761399049109,-603.45,0.00018198,2]
[392356775,1761399049138,-500.0,0.00018198,2]
[392356800,1761399049365,-500.0,0.00018198,2]
[392356803,1761399049397,-1576.24,0.00018198,2]
[392356810,1761399049448,-501.42427709,0.00018198,2]
[392356814,1761399049479,-500.0,0.00018198,2]
[392356818,1761399049508,-1671.01,0.00018198,2]
[392356822,1761399049538,-613.67,0.00018198,2]
[392356826,1761399049568,-500.0,0.00018198,2]
[392356830,1761399049596,-500.0,0.00018198,2]
[392356834,1761399049624,-500.0,0.00018198,2]
[392356868,1761399050142,-76.6215344,0.00018185,2]
[392356873,1761399050181,-423.3784656,0.00018185,2]
[392356875,1761399050191,-4.42298022,0.00018198,2]
[392356969,1761399057782,-385.02116422,0.00018098,2]
[392356970,1761399057814,-524.59,0.00018185,2]
[392356971,1761399057843,-500.0,0.00018185,2]
[392356972,1761399057874,-1215.83,0.00018185,2]
[392356973,1761399057906,-500.0,0.00018185,2]
[392356974,1761399057937,-500.0,0.00018185,2]
[392356975,1761399057968,-945.42,0.00018196,2]
[392356976,1761399057999,-362.71065178,0.00018198,2]
[392356977,1761399058157,-132.866368,0.00018198,2]
[392356978,1761399063869,-160.5,0.000181,2]
[392356979,1761399063901,-160.5,0.000181,2]
[392356980,1761399063932,-1005.41,0.00018185,2]